bitfinex/quotes_BTCUSD_20241203
["timestamp","ask_amount","ask_price","bid_price","bid_amount"]
[1733187014033,0.46205921,96055.0,96054.0,0.08370332]
[1733187014547,0.209214,96055.0,96054.0,0.08370332]
[1733187015035,0.208214,96055.0,96054.0,0.08370332]
[1733187015259,0.208214,96055.0,96054.0,0.08570332]
[1733187015725,0.208214,96055.0,96054.0,0.08270332]
[1733187015961,0.231214,96055.0,96054.0,0.08270332]
[1733187016191,0.231214,96055.0,96054.0,0.09170332]
[1733187016429,0.231214,96055.0,96054.0,0.08270332]
[1733187016680,0.231214,96055.0,96054.0,0.08970332]
[1733187017375,0.231214,96055.0,96054.0,0.09470332]
[1733187017643,0.33405921,96055.0,96054.0,0.09470332]
[1733187017883,0.33405921,96055.0,96054.0,0.01090332]
[1733187018165,0.33505921,96055.0,96054.0,0.00890332]
[1733187018400,0.33505921,96055.0,96054.0,0.01790332]
[1733187018660,0.33505921,96055.0,96054.0,0.00890332]
[1733187018893,0.33505921,96055.0,96054.0,0.01790332]
[1733187019143,0.33405921,96055.0,96054.0,0.01090332]
[1733187019372,0.33405921,96055.0,96054.0,0.00190332]
[1733187019636,0.33405921,96055.0,96054.0,0.01090332]
[1733187020138,0.33405921,96055.0,96054.0,0.01490332]
[1733187020390,0.231214,96055.0,96054.0,0.01490332]
[1733187020653,0.231214,96055.0,96054.0,0.01090332]
[1733187020898,0.208214,96055.0,96054.0,0.09530332]
[1733187021392,0.208214,96055.0,96054.0,0.08630332]
[1733187021638,0.208214,96055.0,96054.0,0.08230332]
[1733187021878,0.209214,96055.0,96054.0,0.09630332]
[1733187022370,0.209214,96055.0,96054.0,0.08730332]
[1733187022618,0.209214,96055.0,96054.0,0.09630332]
[1733187023085,0.208214,96055.0,96054.0,0.09130332]
[1733187023607,0.208214,96055.0,96054.0,0.09630332]
[1733187023608,0.2508564,96055.0,96054.0,0.09630332]
[1733187024312,0.37670161,96055.0,96054.0,0.01590332]
[1733187026951,0.33505921,96055.0,96054.0,0.01590332]
[1733187035214,0.33505921,96055.0,96054.0,0.02586332]
[1733187058824,0.32612547,96055.0,96054.0,0.02586332]
[1733187062837,0.22328026,96055.0,96054.0,0.02586332]
[1733187064749,0.001,96055.0,96054.0,0.52924192]
[1733187064977,0.001,96055.0,96054.0,0.58233909]
[1733187065421,0.001,96055.0,96054.0,0.5901242]
[1733187066405,0.208199,96062.0,96060.0,0.0774]
[1733187067333,0.208189,96067.0,96064.0,0.0822]
[1733187067572,0.208189,96067.0,96064.0,0.22521646]
[1733187067806,0.0008657,96070.0,96067.0,0.2]
[1733187068047,0.0008657,96070.0,96065.0,0.0822]
[1733187068048,0.0008657,96070.0,96069.0,0.2]
[1733187068310,0.0008657,96070.0,96069.0,0.2822]
[1733187068539,0.0008657,96070.0,96069.0,0.4571786]
[1733187068769,0.0008657,96070.0,96069.0,0.55380831]
[1733187070473,0.0098657,96070.0,96069.0,0.55480831]
[1733187070716,0.0098657,96070.0,96069.0,0.55580831]
[1733187072254,0.0098657,96070.0,96069.0,0.2591786]
[1733187072454,0.11271091,96070.0,96069.0,0.002]
[1733187072676,0.26271091,96070.0,96069.0,0.002]
[1733187073343,0.25371091,96070.0,96060.0,0.0831]
[1733187073601,0.208201,96061.0,96060.0,0.0831]
[1733187073824,0.208211,96056.0,96055.0,0.025]
[1733187075017,0.208211,96056.0,96055.0,0.034]
[1733187075897,0.209211,96056.0,96055.0,0.034]
[1733187079436,0.209211,96056.0,96055.0,0.082]
[1733187080843,0.001,96056.0,96055.0,0.282]
[1733187081075,0.001,96056.0,96055.0,0.5351786]
[1733187082029,0.208183,96069.0,96064.0,0.2505786]
[1733187082294,0.208183,96069.0,96065.0,0.02505786]
[1733187082809,0.0008657,96070.0,96069.0,0.3749786]
[1733187083268,0.0008657,96070.0,96069.0,0.4560786]
[1733187086305,0.0028657,96070.0,96069.0,0.4720786]
[1733187086777,0.0028657,96070.0,96069.0,0.40876578]
[1733187095222,0.0028657,96070.0,96069.0,0.20876578]
[1733187095393,0.0028657,96070.0,96069.0,0.1909786]
[1733187097688,0.0028657,96070.0,96069.0,0.016]
[1733187098152,0.0258657,96070.0,96069.0,0.016]
[1733187101568,0.0028657,96070.0,96069.0,0.016]
[1733187103244,0.0258657,96070.0,96069.0,0.016]
[1733187107549,0.35941091,96070.0,96069.0,1e-06]
[1733187108626,0.023,96067.0,96065.0,0.025]
[1733187108826,0.27584521,96066.0,96065.0,0.025]
[1733187110990,0.27584521,96066.0,96065.0,0.027]
[1733187111418,0.27884521,96066.0,96065.0,0.027]
[1733187111873,0.27584521,96066.0,96065.0,0.027]
[1733187112284,0.27684521,96066.0,96065.0,0.027]
[1733187120122,0.27684521,96066.0,96065.0,0.0287296]
[1733187120374,0.25384521,96066.0,96065.0,0.0287296]
[1733187120624,0.001,96066.0,96065.0,0.0287296]
[1733187121538,0.208188,96067.0,96065.0,0.0287296]
[1733187122013,0.001,96066.0,96065.0,0.0377296]
[1733187122255,0.001,96066.0,96065.0,0.0856296]
[1733187122494,0.208188,96067.0,96065.0,0.0766296]
[1733187122731,0.209188,96067.0,96065.0,0.0856296]
[1733187122968,0.27584521,96066.0,96065.0,0.0357296]
[1733187123436,0.27584521,96066.0,96065.0,0.0387296]
[1733187123915,0.29657041,96066.0,96065.0,0.0297296]
[1733187124145,0.29657041,96066.0,96065.0,0.0357296]
[1733187124377,0.29857041,96066.0,96065.0,0.0267296]
[1733187124898,0.29757041,96066.0,96065.0,0.0267296]
[1733187125133,0.29857041,96066.0,96065.0,0.0287296]
[1733187126540,0.29757041,96066.0,96065.0,0.0287296]
[1733187126890,0.29757041,96066.0,96065.0,0.0267296]
[1733187127119,0.29757041,96066.0,96065.0,0.0297296]
[1733187128195,0.29757041,96066.0,96018.0,0.31457414]
[1733187128196,0.0250214,96065.0,96054.0,7.2e-07]
[1733187128441,0.381214,96055.0,96054.0,7.2e-07]
[1733187128681,0.48405921,96055.0,96054.0,7.2e-07]
[1733187130312,0.48405921,96055.0,96054.0,0.00200072]
[1733187130533,0.48605921,96055.0,96054.0,7.2e-07]
[1733187132370,0.48605921,96055.0,96036.0,0.0017286]
[1733187132371,0.381227,96049.0,96048.0,5.2e-07]
[1733187132634,0.48407221,96049.0,96048.0,5.2e-07]
[1733187133322,0.48407221,96049.0,96040.0,9.2e-07]
[1733187133323,0.381244,96041.0,96040.0,9.2e-07]
[1733187133540,0.48408921,96041.0,96040.0,9.2e-07]
[1733187134288,0.50911061,96041.0,96040.0,9.2e-07]
[1733187134532,0.50911061,96041.0,96040.0,0.00100092]
[1733187135003,0.51111061,96041.0,96040.0,0.00100092]
[1733187139712,0.51111061,96041.0,96040.0,9.2e-07]
[1733187139957,0.46308921,96041.0,96040.0,9.2e-07]
[1733187140357,0.31308921,96041.0,96040.0,0.07770092]
[1733187140590,0.31308921,96041.0,96040.0,9.2e-07]
[1733187141092,0.31308921,96041.0,96037.0,5.2e-07]
[1733187141093,0.208247,96040.0,96037.0,5.2e-07]
[1733187141328,0.10284521,96040.0,96036.0,1.2e-07]
[1733187141574,0.358253,96037.0,96036.0,1.2e-07]
[1733187141807,0.48409821,96037.0,96036.0,1.2e-07]
[1733187148237,0.5047443,96037.0,96036.0,1.2e-07]
[1733187148473,0.5047443,96037.0,96005.0,0.0476]
[1733187148474,0.173,96022.0,96021.0,9.2e-07]
[1733187148686,0.2972452,96022.0,96021.0,9.2e-07]
[1733187149621,0.2982452,96022.0,96021.0,9.2e-07]
[1733187149797,0.31916231,96022.0,96021.0,0.00058754]
[1733187153044,0.27684521,96022.0,96021.0,0.00058754]
[1733187155230,0.27684521,96022.0,96021.0,0.00231774]
[1733187158579,0.29817544,96022.0,96021.0,0.00231774]
[1733187158807,0.29817544,96022.0,96021.0,7.4e-07]
[1733187159504,0.173,96020.0,96009.0,3.4e-07]
[1733187159722,0.173,96020.0,96008.0,0.0776292]
[1733187159723,0.173,96009.0,96008.0,5.4e-07]
[1733187159987,0.27584521,96009.0,96008.0,5.4e-07]
[1733187160450,0.27584521,96009.0,96001.0,7.4e-07]
[1733187160451,0.208328,96002.0,96001.0,7.4e-07]
[1733187160677,0.48417321,96002.0,96001.0,7.4e-07]
[1733187162201,0.48417321,96002.0,96001.0,0.00100074]
[1733187162604,0.48517321,96002.0,96001.0,0.00100074]
[1733187163620,0.46217321,96002.0,96001.0,0.12690074]
[1733187164307,0.209328,96002.0,96001.0,0.12690074]
[1733187165049,0.209328,96002.0,96001.0,0.12590074]
[1733187165522,0.208328,96002.0,96001.0,0.12790074]
[1733187166206,0.209328,96002.0,96001.0,0.12790074]
[1733187166857,0.209328,96002.0,96001.0,0.12590074]
[1733187167084,0.209328,96002.0,96001.0,0.12890074]
[1733187167398,0.26203651,96002.0,96001.0,0.12890074]
[1733187167659,0.209328,96002.0,96001.0,0.12890074]
[1733187168104,0.23037074,96002.0,96001.0,0.12890074]
[1733187172143,0.50621595,96002.0,96001.0,7.4e-07]
[1733187172385,0.53123735,96002.0,96001.0,7.4e-07]
[1733187172598,0.15,95986.0,95982.0,0.047]
[1733187172810,0.35837,95983.0,95982.0,0.047]
[1733187173041,0.46121521,95983.0,95982.0,0.047]
[1733187173277,0.208373,95982.0,95979.0,0.082]
[1733187173515,0.208376,95980.0,95979.0,0.082]
[1733187173747,0.31122121,95980.0,95979.0,0.082]
[1733187173982,0.31180494,95980.0,95979.0,0.082]
[1733187175158,0.31280494,95980.0,95979.0,0.087]
[1733187175377,0.46280494,95980.0,95979.0,0.087]
[1733187178730,0.46280494,95980.0,95979.0,0.0887306]
[1733187184595,0.48347181,95980.0,95979.0,0.0067306]
[1733187185427,0.48247181,95980.0,95979.0,0.0027306]
[1733187185623,0.48247181,95980.0,95979.0,0.0067306]
[1733187185871,0.48347181,95980.0,95979.0,0.0057306]
[1733187186341,0.48347181,95980.0,95979.0,0.0067306]
[1733187186541,0.51347181,95980.0,95979.0,0.0067306]
[1733187187543,0.53647181,95980.0,95979.0,0.0067306]
[1733187188243,0.51580494,95980.0,95979.0,0.0057306]
[1733187188464,0.51480494,95980.0,95979.0,0.0017306]
[1733187188687,0.51680494,95980.0,95979.0,0.0017306]
[1733187189622,0.261383,95977.0,95976.0,6e-07]
[1733187189854,0.51422821,95977.0,95976.0,6e-07]
[1733187191060,0.51422821,95977.0,95976.0,0.0020006]
[1733187191536,0.51522821,95977.0,95976.0,0.0020006]
[1733187192188,1.21522821,95977.0,95976.0,0.0020006]
[1733187203555,0.51522821,95977.0,95976.0,0.0020006]
[1733187204534,0.53608353,95977.0,95976.0,0.0020006]
[1733187208368,0.51522821,95977.0,95976.0,0.0020006]
[1733187210137,0.49222821,95977.0,95976.0,0.0020006]
[1733187210312,0.34222821,95977.0,95976.0,0.0833006]
[1733187213478,0.36289635,95977.0,95976.0,0.0833006]
[1733187217459,0.26005114,95977.0,95976.0,0.1314006]
[1733187218127,0.239383,95977.0,95976.0,0.1314006]
[1733187220209,0.34222821,95977.0,95976.0,0.1314006]
[1733187221260,0.34222821,95977.0,95976.0,0.0833006]
[1733187221705,0.15,95973.0,95961.0,0.37321565]
[1733187221939,0.388389,95974.0,95952.0,0.0754]
[1733187221940,0.388424,95958.0,95952.0,0.0754]
[1733187222160,0.49126921,95958.0,95952.0,0.0754]
[1733187222885,0.51426921,95958.0,95944.0,0.0451]
[1733187223339,0.51426921,95958.0,95943.0,0.1767082]
[1733187223340,0.51426921,95958.0,95957.0,6e-07]
[1733187223661,0.60433165,95958.0,95957.0,6e-07]
[1733187223869,0.60396586,95958.0,95957.0,6e-07]
[1733187224089,0.52196586,95958.0,95957.0,6e-07]
[1733187224294,0.411448,95947.0,95943.0,0.0017296]
[1733187224533,0.51429321,95947.0,95943.0,0.0017296]
[1733187225684,0.51487658,95947.0,95943.0,0.0017296]
[1733187226405,0.49187658,95947.0,95943.0,0.0017296]
[1733187226618,0.49187658,95947.0,95946.0,0.0153426]
[1733187226834,0.49187658,95947.0,95946.0,0.0143426]
[1733187227306,0.49187658,95947.0,95946.0,0.0173426]
[1733187233573,0.51225445,95947.0,95946.0,0.0173426]
[1733187234998,0.40940924,95947.0,95946.0,0.0173426]
[1733187235237,0.25940924,95947.0,95946.0,0.0173426]
[1733187237115,0.36225445,95947.0,95946.0,0.019073]
[1733187238549,0.34187658,95947.0,95946.0,0.019073]
[1733187244176,0.36314757,95947.0,95946.0,0.019073]
[1733187244928,0.26030236,95947.0,95946.0,0.142673]
[1733187246826,0.23903137,95947.0,95946.0,0.142673]
[1733187247961,0.23903137,95947.0,95946.0,0.3176516]
[1733187248189,0.00058337,95947.0,95946.0,0.5176516]
[1733187248948,0.03058337,95947.0,95946.0,0.3176516]
[1733187249686,0.03058337,95947.0,95946.0,0.2690516]
[1733187249943,0.13342858,95947.0,95946.0,0.019073]
[1733187250185,0.13342858,95947.0,95946.0,0.016073]
[1733187250418,0.13342858,95947.0,95946.0,0.021073]
[1733187250419,0.13442858,95947.0,95946.0,0.021073]
[1733187251113,0.13442858,95947.0,95946.0,0.016073]
[1733187251354,0.13342858,95947.0,95946.0,0.016073]
[1733187251515,0.13442858,95947.0,95946.0,0.021073]
[1733187251964,0.13342858,95947.0,95946.0,0.021073]
[1733187252395,0.13342858,95947.0,95946.0,0.022073]
[1733187253628,0.15642858,95947.0,95946.0,0.022073]
[1733187257077,0.30642858,95947.0,95946.0,0.022073]
[1733187258967,0.28342858,95947.0,95946.0,0.022073]
[1733187259430,0.00058337,95947.0,95946.0,0.305073]
[1733187259926,0.0003028,95947.0,95946.0,0.305073]
[1733187260179,0.0003028,95947.0,95946.0,0.351873]
[1733187260402,0.0003028,95947.0,95946.0,0.57988268]
[1733187260641,0.0003028,95947.0,95946.0,0.5268516]
[1733187266054,0.0303028,95947.0,95946.0,0.5268516]
[1733187266950,0.0303028,95947.0,95946.0,0.5258516]
[1733187267425,0.0303028,95947.0,95946.0,0.5228516]
[1733187267609,0.0313028,95947.0,95946.0,0.5278516]
[1733187268068,0.0013028,95947.0,95946.0,0.5278516]
[1733187269696,0.0313028,95947.0,95946.0,0.5278516]
[1733187270141,0.0013028,95947.0,95946.0,0.5278516]
[1733187272754,0.2397508,95947.0,95946.0,0.5278516]
[1733187273456,0.0313028,95947.0,95946.0,0.5278516]
[1733187273735,0.2397508,95947.0,95946.0,0.5278516]
[1733187275353,0.2397508,95947.0,95946.0,0.94253028]
[1733187275798,0.2397508,95947.0,95946.0,0.5278516]
[1733187276281,0.2397508,95947.0,95946.0,0.94250347]
[1733187276512,0.2397508,95947.0,95946.0,0.5278516]
[1733187276730,0.2397508,95947.0,95946.0,0.94250347]
[1733187277164,0.2397508,95947.0,95946.0,0.5278516]
[1733187278047,0.0313028,95947.0,95946.0,0.5278516]
[1733187278488,0.0313028,95947.0,95946.0,0.94249546]
[1733187278711,0.0313028,95947.0,95946.0,0.5278516]
[1733187278965,0.0313028,95947.0,95946.0,0.94248963]
[1733187279403,0.0313028,95947.0,95946.0,0.5278516]
[1733187280977,0.0313028,95947.0,95946.0,0.352873]
[1733187281184,0.0313028,95947.0,95946.0,0.5278516]
[1733187283038,0.0313028,95947.0,95946.0,0.94248963]
[1733187283270,0.0321681,95947.0,95946.0,0.94248963]
[1733187283411,0.0321681,95947.0,95946.0,0.5278516]
[1733187283631,0.0321681,95947.0,95946.0,0.94248963]
[1733187284259,0.0321681,95947.0,95946.0,0.5278516]
[1733187287804,0.0021681,95947.0,95946.0,0.5278516]
[1733187301077,0.0021681,95947.0,95946.0,1.03069681]
[1733187301767,0.0021681,95947.0,95946.0,1.06324944]
[1733187301988,0.0011681,95947.0,95946.0,1.20824944]
[1733187302220,0.0101681,95947.0,95946.0,1.20924944]
[1733187302465,0.0401681,95947.0,95946.0,1.20724944]
[1733187302917,0.0401681,95947.0,95946.0,1.21124944]
[1733187302918,0.0411681,95947.0,95946.0,1.21124944]
[1733187303390,0.0401681,95947.0,95946.0,1.20724944]
[1733187303617,0.0401681,95947.0,95946.0,1.17369681]
[1733187303618,0.0071681,95947.0,95946.0,1.17369681]
[1733187303842,0.0371681,95947.0,95946.0,1.17369681]
[1733187304091,0.0461681,95947.0,95946.0,1.17469681]
[1733187304327,0.0461681,95947.0,95946.0,1.27752827]
[1733187304842,0.0461681,95947.0,95946.0,1.17469681]
[1733187327892,0.0461681,95947.0,95946.0,0.217073]
[1733187328108,0.0461681,95947.0,95946.0,0.3920516]
[1733187328542,0.0461681,95947.0,95946.0,0.80639882]
[1733187328762,0.0401681,95947.0,95946.0,0.3920516]
[1733187328993,0.0471681,95947.0,95946.0,0.3920516]
[1733187329233,0.0471681,95947.0,95946.0,0.80640755]
[1733187329456,0.0401681,95947.0,95946.0,0.3920516]
[1733187329906,0.0491681,95947.0,95946.0,0.3920516]
[1733187330379,0.0401681,95947.0,95946.0,0.3910516]
[1733187330828,0.0491681,95947.0,95946.0,0.3920516]
[1733187331062,0.0401681,95947.0,95946.0,0.3910516]
[1733187331758,0.0491681,95947.0,95946.0,0.3910516]
[1733187336333,0.0491681,95947.0,95946.0,0.49389681]
[1733187340218,0.0491681,95947.0,95946.0,0.69389681]
[1733187340455,0.0491681,95947.0,95946.0,1.04389681]
[1733187340874,0.0491681,95947.0,95946.0,1.14672827]
[1733187342066,0.0491681,95947.0,95946.0,0.64388306]
[1733187342288,0.0491681,95947.0,95946.0,0.3910516]
[1733187342966,0.0491681,95947.0,95946.0,0.49389681]
[1733187343200,0.0491681,95947.0,95946.0,0.81739681]
[1733187347617,0.0491681,95947.0,95946.0,1.13305062]
[1733187347857,0.0401681,95947.0,95946.0,1.13305062]
[1733187348086,0.0081681,95947.0,95946.0,1.13305062]
[1733187348337,0.0381681,95947.0,95946.0,0.81739681]
[1733187348572,0.0391681,95947.0,95946.0,0.81839681]
[1733187349031,0.0451681,95947.0,95946.0,0.81839681]
[1733187350192,0.0011681,95947.0,95946.0,1.13305062]
[1733187350652,0.0481681,95947.0,95946.0,1.13405062]
[1733187350914,0.0481681,95947.0,95946.0,1.18280855]
[1733187351139,0.0491681,95947.0,95946.0,1.21815474]
[1733187351365,0.0561681,95947.0,95946.0,1.21815474]
[1733187352097,0.0311681,95947.0,95946.0,1.21715474]
[1733187352355,0.0451681,95947.0,95946.0,1.21815474]
[1733187352789,0.0451681,95947.0,95946.0,1.16839681]
[1733187353494,0.0011681,95947.0,95946.0,1.16739681]
[1733187353728,0.0011681,95947.0,95946.0,1.16839681]
[1733187353943,0.0451681,95947.0,95946.0,1.16839681]
[1733187358812,0.0451681,95947.0,95946.0,1.4841447]
[1733187359546,0.0451681,95947.0,95946.0,1.16839681]
[1733187360921,0.0391681,95947.0,95946.0,1.16839681]
[1733187361178,0.0311681,95947.0,95946.0,1.16739681]
[1733187363201,0.0011681,95947.0,95946.0,1.16739681]
[1733187364388,0.00070695,95947.0,95946.0,1.27022827]
[1733187365346,0.00070695,95947.0,95946.0,1.16739681]
[1733187369288,0.03070695,95947.0,95946.0,1.16739681]
[1733187371187,0.0670591,95947.0,95946.0,1.16739681]
[1733187371409,0.0670591,95947.0,95946.0,1.19993557]
[1733187371653,0.0670591,95947.0,95946.0,1.16739681]
[1733187371885,0.0670591,95947.0,95946.0,1.27022827]
[1733187372355,0.0670591,95947.0,95946.0,1.30276686]
[1733187373336,0.03878109,95947.0,95946.0,1.33276686]
[1733187373580,0.06456075,95947.0,95946.0,1.33276686]
[1733187374519,0.05977962,95947.0,95946.0,1.33276686]
[1733187376116,0.0639095,95947.0,95946.0,1.33276686]
[1733187377558,0.06303796,95947.0,95946.0,1.35576686]
[1733187377779,0.0008652,95957.0,95956.0,1.2875066]
[1733187378005,0.0008652,95957.0,95956.0,3.8528904]
[1733187381607,0.0008652,95957.0,95956.0,3.82035181]
[1733187381852,0.0008652,95957.0,95956.0,3.41332381]
[1733187382108,0.0008652,95957.0,95956.0,0.70782381]
[1733187382570,0.0008652,95957.0,95956.0,0.50782381]
[1733187384900,0.02170036,95957.0,95956.0,0.4049786]
[1733187385337,0.02170036,95957.0,95956.0,0.81937899]
[1733187385565,0.02170036,95957.0,95956.0,0.4049786]
[1733187385804,0.02170036,95957.0,95956.0,0.81937899]
[1733187386027,0.0008652,95957.0,95956.0,0.4049786]
[1733187387686,0.02170036,95957.0,95956.0,0.51560398]
[1733187387909,0.02170036,95957.0,95956.0,0.41277252]
[1733187388803,0.02170036,95957.0,95956.0,0.81945866]
[1733187389482,0.02170036,95957.0,95956.0,0.4049786]
[1733187389720,0.02170036,95957.0,95956.0,0.81945866]
[1733187390672,0.10280036,95957.0,95956.0,0.23]
[1733187390903,0.208428,95956.0,95955.0,0.20916484]
[1733187391135,0.208428,95956.0,95955.0,0.03]
[1733187391361,0.208428,95956.0,95955.0,0.38414344]
[1733187391576,0.41137321,95956.0,95955.0,0.03]
[1733187391812,0.41137321,95956.0,95946.0,0.01665637]
[1733187391813,0.0771,95947.0,95946.0,0.01665637]
[1733187392036,0.0771,95947.0,95946.0,0.04665637]
[1733187392037,0.25044521,95947.0,95946.0,0.04665637]
[1733187397074,0.22831021,95947.0,95946.0,0.04665637]
[1733187397307,0.077965,95947.0,95946.0,0.40079981]
[1733187397988,0.000865,95947.0,95946.0,0.40079981]
[1733187401758,0.000865,95947.0,95946.0,0.70364502]
[1733187401990,0.000865,95947.0,95946.0,1.05364502]
[1733187404179,0.000865,95947.0,95946.0,0.22582121]
[1733187404429,0.000865,95947.0,95946.0,0.40079981]
[1733187405097,0.000865,95947.0,95946.0,0.22163497]
[1733187405335,0.0426399,95947.0,95946.0,0.40079981]
[1733187405573,0.0426399,95947.0,95946.0,0.22582121]
[1733187406070,0.0426399,95947.0,95946.0,0.40079981]
[1733187406271,0.000865,95947.0,95946.0,0.40079981]
[1733187411064,0.12671021,95947.0,95946.0,0.22163497]
[1733187414333,0.12671021,95947.0,95946.0,0.04665637]
[1733187414560,0.12671021,95947.0,95946.0,0.22163497]
[1733187415295,0.25811021,95947.0,95946.0,0.22163497]
[1733187415749,0.32569613,95947.0,95946.0,0.22163497]
[1733187417199,0.25811021,95947.0,95946.0,0.22163497]
[1733187417437,0.20951021,95947.0,95946.0,0.22163497]
[1733187417669,0.12671021,95947.0,95946.0,0.22163497]
[1733187419091,0.000865,95947.0,95946.0,0.40079981]
[1733187425144,0.000865,95947.0,95946.0,0.44689981]
[1733187438936,0.000865,95947.0,95946.0,0.52839981]
[1733187442826,0.000865,95947.0,95946.0,0.40079981]
[1733187442827,0.209313,95947.0,95946.0,0.40079981]
[1733187443046,0.209313,95947.0,95946.0,0.81555935]
[1733187443271,0.209313,95947.0,95946.0,0.40079981]
[1733187443492,0.209313,95947.0,95946.0,0.81555935]
[1733187443964,0.209313,95947.0,95946.0,0.40079981]
[1733187446720,0.209313,95947.0,95946.0,0.04665637]
[1733187446941,0.209313,95947.0,95946.0,0.22582121]
[1733187447166,0.209313,95947.0,95946.0,0.22163497]
[1733187447386,0.209313,95947.0,95946.0,0.22582121]
[1733187447606,0.209313,95947.0,95946.0,0.40079981]
[1733187447826,0.209313,95947.0,95946.0,0.04665637]
[1733187448057,0.209313,95947.0,95946.0,0.22582121]
[1733187448754,0.209313,95947.0,95946.0,0.40079981]
[1733187449201,0.209313,95947.0,95946.0,0.22582121]
[1733187449884,0.209313,95947.0,95946.0,0.22163497]
[1733187450113,0.209313,95947.0,95946.0,0.04665637]
[1733187450337,0.38243351,95947.0,95946.0,0.04665637]
[1733187453030,0.31215821,95947.0,95946.0,0.04665637]
[1733187453667,0.33347764,95947.0,95946.0,0.04665637]
[1733187455660,0.35647764,95947.0,95946.0,0.04665637]
[1733187458562,0.33515821,95947.0,95946.0,0.04665637]
[1733187462126,0.56245821,95947.0,95946.0,0.04665637]
[1733187463300,0.48515821,95947.0,95946.0,0.04665637]
[1733187465174,0.50640461,95947.0,95946.0,0.04665637]
[1733187467881,0.33340461,95947.0,95946.0,0.04665637]
[1733187468563,0.31215821,95947.0,95946.0,0.04665637]
[1733187469033,0.209313,95947.0,95946.0,0.40079981]
[1733187469251,0.209313,95947.0,95946.0,0.44809981]
[1733187469517,0.209313,95947.0,95946.0,0.52939981]
[1733187469731,0.209313,95947.0,95946.0,0.94414419]
[1733187469946,0.209313,95947.0,95946.0,0.52939981]
[1733187475149,0.23340518,95947.0,95946.0,0.52939981]
[1733187479523,0.02495718,95947.0,95946.0,0.58268571]
[1733187479732,0.02495718,95947.0,95946.0,0.5904911]
[1733187480506,0.02495718,95947.0,95946.0,0.85324877]
[1733187481562,0.02495718,95947.0,95946.0,0.85324487]
[1733187482105,0.02495718,95947.0,95946.0,0.5372013]
[1733187485297,0.02495718,95947.0,95946.0,0.53719538]
[1733187486752,0.02495718,95947.0,95946.0,0.85760413]
[1733187486993,0.02495718,95947.0,95946.0,1.11043559]
[1733187487444,0.02495718,95947.0,95946.0,1.31043559]
[1733187487636,0.000865,95948.0,95947.0,1.26479144]
[1733187487862,0.000865,95948.0,95947.0,1.47513665]
[1733187489232,0.0261902,95948.0,95947.0,1.47513665]
[1733187489458,0.02101441,95948.0,95947.0,1.57796811]
[1733187490327,0.0008652,95957.0,95956.0,0.96257144]
[1733187490551,0.02101461,95957.0,95956.0,1.36801665]
[1733187491398,0.0008652,95957.0,95956.0,1.15958865]
[1733187491637,0.0008652,95957.0,95956.0,0.50674344]
[1733187493069,0.0008652,95957.0,95956.0,0.2049786]
[1733187493289,0.0008652,95957.0,95956.0,0.38414344]
[1733187496393,0.0008652,95957.0,95956.0,0.51144344]
[1733187497254,0.0008652,95957.0,95956.0,0.92514302]
[1733187497534,0.0008652,95957.0,95956.0,0.51144344]
[1733187498549,0.0008652,95957.0,95956.0,0.92503103]
[1733187498939,0.0008652,95957.0,95956.0,0.51144344]
[1733187504976,0.0008652,95957.0,95956.0,0.71987144]
[1733187505262,0.0008652,95957.0,95956.0,0.73235331]
[1733187505487,0.0008652,95957.0,95956.0,0.83518477]
[1733187505718,0.0008652,95957.0,95956.0,0.85078565]
[1733187506834,0.0008652,95957.0,95956.0,0.64235765]
[1733187507057,0.0008652,95957.0,95956.0,0.62675677]
[1733187507795,0.0008652,95957.0,95956.0,0.52392531]
[1733187515692,0.0008652,95957.0,95956.0,0.21746047]
[1733187515921,0.0008652,95957.0,95956.0,0.38414344]
[1733187516146,0.0008652,95957.0,95956.0,0.20916484]
[1733187516379,0.0008652,95957.0,95956.0,0.03]
[1733187516867,0.25462133,95957.0,95956.0,0.03]
[1733187517108,0.27557018,95957.0,95956.0,0.03]
[1733187517574,0.25257018,95957.0,95956.0,0.03]
[1733187517806,0.22905926,95957.0,95956.0,0.03]
[1733187518535,0.20811041,95957.0,95955.0,0.03]
[1733187518794,0.33427321,95956.0,95955.0,0.03]
[1733187527634,0.208428,95956.0,95955.0,0.20916484]
[1733187535218,0.289728,95956.0,95955.0,0.20916484]
[1733187535442,0.313593,95956.0,95955.0,0.20916484]
[1733187537250,0.41643821,95956.0,95955.0,0.20916484]
[1733187539751,0.41643821,95956.0,95955.0,0.03]
[1733187541749,0.39343821,95956.0,95955.0,0.03]
[1733187541960,0.41643821,95956.0,95955.0,0.03]
[1733187542779,0.39343821,95956.0,95955.0,0.03]
[1733187542980,0.41643821,95956.0,95955.0,0.03]
[1733187544738,0.4376056,95956.0,95955.0,0.03]
[1733187544956,0.231444,95949.0,95947.0,0.03]
[1733187545169,0.33428921,95949.0,95947.0,0.03]
[1733187545617,0.41973817,95949.0,95947.0,0.03]
[1733187547637,0.15,95948.0,95947.0,0.03]
[1733187547858,0.464448,95947.0,95946.0,0.04665637]
[1733187548077,0.208454,95944.0,95939.0,0.0017296]
[1733187548308,0.48429921,95944.0,95939.0,0.0017296]
[1733187548750,0.48429921,95944.0,95943.0,6e-07]
[1733187550322,0.50526215,95944.0,95943.0,6e-07]
[1733187550737,1.20526215,95944.0,95943.0,6e-07]
[1733187550956,1.29071111,95944.0,95943.0,6e-07]
[1733187553749,0.56974817,95944.0,95943.0,6e-07]
[1733187555200,1.26974817,95944.0,95943.0,6e-07]
[1733187556700,0.208463,95940.0,95939.0,2e-07]
[1733187556872,0.46130821,95940.0,95939.0,2e-07]
[1733187557101,0.49489217,95940.0,95939.0,2e-07]
[1733187559032,0.57609217,95940.0,95939.0,2e-07]
[1733187559279,0.58159972,95940.0,95939.0,2e-07]
[1733187559514,0.60221956,95940.0,95939.0,2e-07]
[1733187560377,1.30221956,95940.0,95939.0,2e-07]
[1733187562355,1.39517612,95940.0,95939.0,2e-07]
[1733187563553,1.38966857,95940.0,95939.0,2e-07]
[1733187563781,1.36904873,95940.0,95939.0,2e-07]
[1733187568376,0.381496,95925.0,95924.0,0.00153236]
[1733187568619,0.56669065,95925.0,95924.0,0.00153236]
[1733187569311,0.48434121,95925.0,95924.0,0.12623236]
[1733187569797,0.50473732,95925.0,95924.0,0.12623236]
[1733187573590,0.48434121,95925.0,95924.0,0.12623236]
[1733187577736,0.33434121,95925.0,95924.0,0.3053972]
[1733187577945,0.231496,95925.0,95924.0,0.3053972]
[1733187578850,0.208496,95925.0,95924.0,0.3053972]
[1733187579070,0.22888797,95925.0,95924.0,0.3053972]
[1733187580249,0.42022552,95925.0,95924.0,0.3053972]
[1733187580621,0.42022552,95925.0,95924.0,0.12623236]
[1733187581231,0.42022552,95925.0,95924.0,0.05103236]
[1733187582633,0.42022552,95925.0,95924.0,0.00153236]